fUSD/lending_fUSD_20250112
["ID","MTS","AMOUNT","RATE_DAILY","PERIOD"]
[348636108,1736693436060,-500.0,9.967e-05,2]
[348636109,1736693436070,-500.0,9.967e-05,2]
[348636110,1736693436079,-500.0,9.967e-05,2]
[348636111,1736693436088,-247.54489911,9.967e-05,2]
[348636112,1736693436097,-500.0,9.967e-05,2]
[348636113,1736693436106,-500.0,9.967e-05,2]
[348636114,1736693436117,-644.150764,9.967e-05,2]
[348636115,1736693436126,-500.0,9.967e-05,2]
[348636116,1736693436135,-500.0,9.967e-05,2]
[348636117,1736693436144,-501.30042216,9.967e-05,2]
[348636118,1736693436153,-500.0,9.967e-05,2]
[348636119,1736693436162,-500.65795346,9.967e-05,2]
[348636120,1736693436172,-580.05915709,9.967e-05,2]
[348636121,1736693436181,-500.0,9.967e-05,2]
[348636122,1736693436191,-334.0424685,9.967e-05,2]
[348636123,1736693436200,-500.0,9.967e-05,2]
[348636124,1736693436210,-500.0,9.967e-05,2]
[348636125,1736693436219,-500.0,9.967e-05,2]
[348636126,1736693436228,-500.0,9.967e-05,2]
[348636127,1736693436238,-500.0,9.967e-05,2]
[348636128,1736693436247,-584.73,9.967e-05,2]
[348636129,1736693436256,-560.38,9.967e-05,2]
[348636130,1736693436266,-500.0,9.967e-05,2]
[348636131,1736693436275,-500.0,9.967e-05,2]
[348636132,1736693436284,-500.0,9.967e-05,2]
[348636133,1736693436294,-500.0,9.967e-05,2]
[348636134,1736693436303,-644.84996578,9.967e-05,2]
[348636135,1736693436313,-500.0,9.967e-05,2]
[348636136,1736693436322,-278.63939574,9.967e-05,2]
[348636137,1736693436332,-500.0,9.967e-05,2]
[348636138,1736693436341,-500.0,9.967e-05,2]
[348636139,1736693436350,-535.28,9.967e-05,2]
[348636140,1736693436360,-500.0,9.967e-05,2]
[348636141,1736693436369,-217.80122709,9.967e-05,2]
[348636142,1736693436378,-500.0,9.967e-05,2]
[348636143,1736693436388,-807.41,9.967e-05,2]
[348636144,1736693436397,-500.0,9.967e-05,2]
[348636145,1736693436407,-500.0,9.967e-05,2]
[348636146,1736693436416,-500.0,9.967e-05,2]
[348636147,1736693436425,-500.0,9.967e-05,2]
[348636148,1736693436435,-627.38,9.967e-05,2]
[348636149,1736693436444,-500.0,9.967e-05,2]
[348636150,1736693436454,-500.0,9.967e-05,2]
[348636151,1736693436464,-500.0,9.967e-05,2]
[348636152,1736693436474,-500.0,9.967e-05,2]
[348636153,1736693436484,-500.0,9.967e-05,2]
[348636154,1736693436493,-661.41,9.967e-05,2]
[348636155,1736693436502,-500.0,9.967e-05,2]
[348636156,1736693436513,-500.0,9.967e-05,2]
[348636157,1736693436522,-500.0,9.967e-05,2]
[348636158,1736693436531,-500.0,9.967e-05,2]
[348636159,1736693436540,-500.0,9.967e-05,2]
[348636160,1736693436550,-500.0,9.967e-05,2]
[348636161,1736693436559,-505.81197565,9.967e-05,2]
[348636162,1736693436568,-500.0,9.967e-05,2]
[348636163,1736693436577,-500.0,9.967e-05,2]
[348636164,1736693436586,-500.0,9.967e-05,2]
[348636165,1736693436596,-659.08,9.967e-05,2]
[348636166,1736693436605,-500.0,9.967e-05,2]
[348636167,1736693436617,-686.81,9.967e-05,2]
[348636168,1736693436626,-500.0,9.967e-05,2]
[348636169,1736693436636,-500.0,9.967e-05,2]
[348636170,1736693436646,-500.0,9.967e-05,2]
[348636171,1736693436655,-208.19412649,9.967e-05,2]
[348636172,1736693436666,-500.0,9.967e-05,2]
[348636173,1736693436676,-2712.26,9.967e-05,2]
[348636174,1736693436686,-500.0,9.967e-05,2]
[348636175,1736693436695,-500.0,9.967e-05,2]
[348636176,1736693436705,-500.93861245,9.967e-05,2]
[348636177,1736693436715,-500.91611661,9.967e-05,2]
[348636178,1736693436726,-500.0,9.967e-05,2]
[348636179,1736693436736,-500.0,9.967e-05,2]
[348636180,1736693436745,-500.0,9.967e-05,2]
[348636181,1736693436755,-500.0,9.967e-05,2]
[348636182,1736693436765,-500.74395103,9.967e-05,2]
[348636183,1736693436774,-500.0,9.967e-05,2]
[348636184,1736693436784,-500.0,9.967e-05,2]
[348636185,1736693436793,-500.0,9.967e-05,2]
[348636186,1736693436806,-525.53,9.967e-05,2]
[348636187,1736693436816,-500.0,9.967e-05,2]
[348636188,1736693436825,-505.64,9.967e-05,2]
[348636189,1736693436834,-542.46,9.967e-05,2]
[348636190,1736693436844,-500.0,9.967e-05,2]
[348636191,1736693436854,-500.0,9.967e-05,2]
[348636192,1736693436864,-500.0,9.967e-05,2]
[348636193,1736693436873,-500.0,9.967e-05,2]
[348636194,1736693436884,-500.0,9.967e-05,2]
[348636195,1736693436894,-165.39,9.967e-05,2]
[348636196,1736693436904,-500.0,9.967e-05,2]
[348636197,1736693436913,-500.0,9.967e-05,2]
[348636198,1736693436922,-500.0,9.967e-05,2]
[348636199,1736693436932,-500.0,9.967e-05,2]
[348636200,1736693436942,-501.21256879,9.967e-05,2]
[348636201,1736693436951,-500.0,9.967e-05,2]
[348636202,1736693436960,-65.21328168,9.967e-05,2]
[348636203,1736693436993,-434.78671832,9.967e-05,2]
[348636204,1736693437003,-500.0,9.967e-05,2]
[348636205,1736693437012,-674.22,9.967e-05,2]
[348636206,1736693437021,-500.0,9.967e-05,2]
[348636207,1736693437032,-508.13,9.967e-05,2]
[348636208,1736693437041,-500.0,9.967e-05,2]
[348636209,1736693437051,-500.0,9.967e-05,2]
[348636210,1736693437061,-596.82,9.967e-05,2]
[348636211,1736693437072,-500.0,9.967e-05,2]
[348636212,1736693437081,-500.0,9.967e-05,2]
[348636213,1736693437090,-500.0,9.967e-05,2]
[348636214,1736693437099,-500.0,9.967e-05,2]
[348636215,1736693437108,-555.31,9.967e-05,2]
[348636216,1736693437117,-500.0,9.967e-05,2]
[348636217,1736693437126,-500.0,9.967e-05,2]
[348636218,1736693437136,-501.9433127,9.967e-05,2]
[348636219,1736693437146,-500.0,9.967e-05,2]
[348636220,1736693437156,-500.0,9.967e-05,2]
[348636221,1736693437165,-500.0,9.967e-05,2]
[348636222,1736693437174,-380.72160842,9.967e-05,2]
[348636223,1736693437185,-500.0,9.967e-05,2]
[348636224,1736693437194,-500.0,9.967e-05,2]
[348636225,1736693437204,-500.0,9.967e-05,2]
[348636226,1736693437215,-500.0,9.967e-05,2]
[348636227,1736693437224,-353.730012,9.967e-05,2]
[348636228,1736693437233,-500.0,9.967e-05,2]
[348636229,1736693437242,-529.72,9.967e-05,2]
[348636230,1736693437251,-500.0,9.967e-05,2]
[348636231,1736693437262,-500.0,9.967e-05,2]
[348636232,1736693437271,-635.53,9.967e-05,2]
[348636233,1736693437281,-550.02,9.967e-05,2]
[348636234,1736693437291,-500.0,9.967e-05,2]
[348636235,1736693437299,-500.0,9.967e-05,2]
[348636236,1736693437309,-231.46368057,9.967e-05,2]
[348636237,1736693437319,-500.0,9.967e-05,2]
[348636238,1736693437328,-500.0,9.967e-05,2]
[348636239,1736693437337,-500.0,9.967e-05,2]
[348636240,1736693437346,-500.0,9.967e-05,2]
[348636241,1736693437355,-500.0,9.967e-05,2]
[348636242,1736693437365,-500.0,9.967e-05,2]
[348636243,1736693437375,-500.0,9.967e-05,2]
[348636244,1736693437384,-500.0,9.967e-05,2]
[348636245,1736693437394,-500.0,9.967e-05,2]
[348636246,1736693437403,-500.0,9.967e-05,2]
[348636247,1736693437412,-782.14,9.967e-05,2]
[348636248,1736693437421,-500.0,9.967e-05,2]
[348636249,1736693437430,-500.0,9.967e-05,2]
[348636250,1736693437439,-500.0,9.967e-05,2]
[348636251,1736693437448,-500.0,9.967e-05,2]
[348636252,1736693437457,-500.0,9.967e-05,2]
[348636253,1736693437466,-595.07723551,9.967e-05,2]
[348636254,1736693437475,-500.0,9.967e-05,2]
[348636255,1736693437485,-473.91821886,9.967e-05,2]
[348636256,1736693437494,-524.11,9.967e-05,2]
[348636257,1736693437503,-500.0,9.967e-05,2]
[348636258,1736693437511,-500.0,9.967e-05,2]
[348636259,1736693437520,-501.351305,9.967e-05,2]
[348636260,1736693437529,-500.0,9.967e-05,2]
[348636261,1736693437539,-500.0,9.967e-05,2]
[348636262,1736693437548,-561.26,9.967e-05,2]
[348636263,1736693437557,-508.79242213,9.967e-05,2]
[348636264,1736693437567,-503.4477864,9.967e-05,2]
[348636265,1736693437576,-673.9,9.967e-05,2]
[348636266,1736693437585,-503.2784802,9.967e-05,2]
[348636267,1736693437594,-500.0,9.967e-05,2]
[348636268,1736693437603,-500.0,9.967e-05,2]
[348636269,1736693437614,-500.0,9.967e-05,2]
[348636270,1736693437623,-500.0,9.967e-05,2]
[348636271,1736693437632,-500.0,9.967e-05,2]
[348636272,1736693437641,-500.0,9.967e-05,2]
[348636273,1736693437650,-500.0,9.967e-05,2]
[348636274,1736693437659,-500.0,9.967e-05,2]
[348636275,1736693437668,-500.0,9.967e-05,2]
[348636276,1736693437677,-500.0,9.967e-05,2]
[348636277,1736693437686,-501.36088546,9.967e-05,2]
[348636278,1736693437695,-242.56667306,9.967e-05,2]
[348636279,1736693437704,-500.0,9.967e-05,2]
[348636280,1736693437714,-274.35192669,9.967e-05,2]
[348636281,1736693437724,-713.01,9.967e-05,2]
[348636282,1736693437734,-500.0,9.967e-05,2]
[348636283,1736693437743,-500.0,9.967e-05,2]
[348636284,1736693437752,-501.85375896,9.967e-05,2]
[348636285,1736693437760,-500.0,9.967e-05,2]
[348636286,1736693437769,-500.0,9.967e-05,2]
[348636287,1736693437779,-500.0,9.967e-05,2]
[348636288,1736693437787,-500.0,9.967e-05,2]
[348636289,1736693437796,-500.0,9.967e-05,2]
[348636290,1736693437805,-500.0,9.967e-05,2]
[348636291,1736693437814,-500.0,9.967e-05,2]
[348636292,1736693437823,-340.48642219,9.967e-05,2]
[348636293,1736693437832,-500.0,9.967e-05,2]
[348636294,1736693437841,-500.0,9.967e-05,2]
[348636295,1736693437850,-500.0,9.967e-05,2]
[348636296,1736693437859,-500.0,9.967e-05,2]
[348636297,1736693437868,-529.28,9.967e-05,2]
[348636298,1736693437877,-500.0,9.967e-05,2]
[348636299,1736693437887,-500.0,9.967e-05,2]
[348636300,1736693437896,-500.0,9.967e-05,2]
[348636301,1736693437905,-500.0,9.967e-05,2]
[348636302,1736693437914,-500.0,9.967e-05,2]
[348636303,1736693437923,-500.0,9.967e-05,2]
[348636304,1736693437932,-500.0,9.967e-05,2]
[348636305,1736693437941,-500.0,9.967e-05,2]
[348636306,1736693437950,-500.0,9.967e-05,2]
[348636307,1736693437963,-511.78956847,9.967e-05,2]
[348636308,1736693437972,-500.0,9.967e-05,2]
[348636309,1736693437981,-500.0,9.967e-05,2]
[348636310,1736693437995,-744.78,9.967e-05,2]
[348636311,1736693438003,-500.0,9.967e-05,2]
[348636312,1736693438013,-500.0,9.967e-05,2]
[348636313,1736693438022,-500.0,9.967e-05,2]
[348636314,1736693438031,-620.57,9.967e-05,2]
[348636316,1736693438040,-500.0,9.967e-05,2]
[348636317,1736693438049,-339.47465664,9.967e-05,2]
[348636318,1736693438058,-500.0,9.967e-05,2]
[348636319,1736693438067,-500.0,9.967e-05,2]
[348636320,1736693438077,-500.0,9.967e-05,2]
[348636321,1736693438086,-500.0,9.967e-05,2]
[348636322,1736693438095,-500.0,9.967e-05,2]
[348636323,1736693438263,-500.0,9.967e-05,2]
[348636324,1736693438298,-506.60455663,9.967e-05,2]
[348636325,1736693438307,-500.0,9.967e-05,2]
[348636326,1736693438317,-782.44,9.967e-05,2]
[348636327,1736693438327,-624.88,9.967e-05,2]
[348636328,1736693438337,-500.0,9.967e-05,2]
[348636329,1736693438346,-686.11,9.967e-05,2]
[348636330,1736693438355,-500.0,9.967e-05,2]
[348636331,1736693438365,-500.0,9.967e-05,2]
[348636332,1736693438374,-500.0,9.967e-05,2]
[348636333,1736693438384,-500.0,9.967e-05,2]
[348636334,1736693438394,-500.0,9.967e-05,2]
[348636335,1736693438404,-703.08,9.967e-05,2]
[348636336,1736693438413,-500.0,9.967e-05,2]
[348636337,1736693438422,-500.0,9.967e-05,2]
[348636338,1736693438431,-644.83,9.967e-05,2]
[348636339,1736693438441,-500.0,9.967e-05,2]
[348636340,1736693438451,-500.0,9.967e-05,2]
[348636341,1736693438461,-589.53,9.967e-05,2]
[348636342,1736693438470,-500.0,9.967e-05,2]
[348636343,1736693438480,-498.24194781,9.967e-05,2]
[348636344,1736693438489,-500.0,9.967e-05,2]
[348636345,1736693438499,-500.0,9.967e-05,2]
[348636346,1736693438508,-555.3,9.967e-05,2]
[348636347,1736693438517,-501.46425836,9.967e-05,2]
[348636348,1736693438527,-425.03194397,9.967e-05,2]
[348636349,1736693438536,-500.0,9.967e-05,2]
[348636350,1736693438545,-500.0,9.967e-05,2]
[348636351,1736693438555,-500.0,9.967e-05,2]
[348636352,1736693438564,-500.0,9.967e-05,2]
[348636353,1736693438572,-661.84,9.967e-05,2]
[348636354,1736693438582,-501.63872328,9.967e-05,2]
[348636355,1736693438592,-500.0,9.967e-05,2]
[348636356,1736693438602,-500.0,9.967e-05,2]
[348636357,1736693438612,-500.0,9.967e-05,2]
[348636358,1736693438621,-500.0,9.967e-05,2]
[348636359,1736693438630,-500.0,9.967e-05,2]
[348636360,1736693438639,-500.0,9.967e-05,2]
[348636361,1736693438649,-500.0,9.967e-05,2]
[348636362,1736693438658,-675.87,9.967e-05,2]
[348636363,1736693438667,-500.0,9.967e-05,2]
[348636364,1736693438677,-500.0,9.967e-05,2]
[348636365,1736693438686,-501.32859064,9.967e-05,2]
[348636367,1736693438696,-500.0,9.967e-05,2]
[348636369,1736693438706,-500.0,9.967e-05,2]
[348636371,1736693438716,-558.42,9.967e-05,2]
[348636373,1736693438726,-500.0,9.967e-05,2]
[348636375,1736693438740,-500.0,9.967e-05,2]
[348636377,1736693438750,-500.0,9.967e-05,2]
[348636379,1736693438760,-1025.12,9.967e-05,2]
[348636381,1736693438770,-500.0,9.967e-05,2]
[348636383,1736693438779,-500.0,9.967e-05,2]
[348636385,1736693438790,-500.0,9.967e-05,2]
[348636387,1736693438800,-500.0,9.967e-05,2]
[348636389,1736693438810,-500.0,9.967e-05,2]
[348636390,1736693438819,-500.0,9.967e-05,2]
[348636391,1736693438829,-771.55,9.967e-05,2]
[348636392,1736693438839,-501.00282612,9.967e-05,2]
[348636393,1736693438847,-500.0,9.967e-05,2]
[348636394,1736693438858,-500.35373502,9.967e-05,2]
[348636395,1736693438868,-500.0,9.967e-05,2]
[348636396,1736693438877,-692.72,9.967e-05,2]
[348636397,1736693438887,-1489.76,9.967e-05,2]
[348636398,1736693438897,-502.05273493,9.967e-05,2]
[348636399,1736693438907,-500.0,9.967e-05,2]
[348636400,1736693438916,-513.18,9.967e-05,2]
[348636401,1736693438925,-500.0,9.967e-05,2]
[348636402,1736693438935,-501.46697405,9.967e-05,2]
[348636403,1736693438944,-500.0,9.967e-05,2]
[348636404,1736693438953,-500.0,9.967e-05,2]
[348636405,1736693438963,-500.0,9.967e-05,2]
[348636406,1736693438972,-500.0,9.967e-05,2]
[348636407,1736693438984,-500.0,9.967e-05,2]
[348636408,1736693438994,-610.78,9.967e-05,2]
[348636409,1736693439004,-1066.16,9.967e-05,2]
[348636410,1736693439013,-500.0,9.967e-05,2]
[348636411,1736693439023,-500.0,9.967e-05,2]
[348636412,1736693439032,-501.28865827,9.967e-05,2]
[348636413,1736693439042,-500.0,9.967e-05,2]
[348636414,1736693439051,-500.0,9.967e-05,2]
[348636415,1736693439065,-800.53,9.967e-05,2]
[348636416,1736693439075,-500.0,9.967e-05,2]
[348636417,1736693439084,-500.0,9.967e-05,2]
[348636418,1736693439093,-500.0,9.967e-05,2]
[348636419,1736693439103,-803.54,9.967e-05,2]
[348636420,1736693439112,-500.0,9.967e-05,2]
[348636421,1736693439121,-500.0,9.967e-05,2]
[348636422,1736693439131,-500.0,9.967e-05,2]
[348636423,1736693439140,-500.0,9.967e-05,2]
[348636424,1736693439151,-500.0,9.967e-05,2]
[348636425,1736693439163,-500.0,9.967e-05,2]
[348636426,1736693439173,-278.64269338,9.967e-05,2]
[348636427,1736693439183,-503.75490631,9.967e-05,2]
[348636428,1736693439193,-512.06,9.967e-05,2]
[348636429,1736693439203,-749.78,9.967e-05,2]
[348636430,1736693439213,-281.12342451,9.967e-05,2]
[348636431,1736693439224,-500.0,9.967e-05,2]
[348636432,1736693439234,-501.11955231,9.967e-05,2]
[348636433,1736693439244,-1659.23934462,9.967e-05,2]
[348636434,1736693439254,-500.0,9.967e-05,2]
[348636435,1736693439263,-1653.07,9.967e-05,2]
[348636436,1736693439273,-759.08,9.967e-05,2]
[348636437,1736693439283,-500.0,9.967e-05,2]
[348636438,1736693439292,-500.0,9.967e-05,2]
[348636439,1736693439302,-500.0,9.967e-05,2]
[348636440,1736693439311,-500.0,9.967e-05,2]
[348636441,1736693439323,-500.0,9.967e-05,2]
[348636442,1736693439333,-500.0,9.967e-05,2]
[348636443,1736693439343,-500.0,9.967e-05,2]
[348636444,1736693439352,-500.0,9.967e-05,2]
[348636445,1736693439362,-500.0,9.967e-05,2]
[348636446,1736693439371,-500.0,9.967e-05,2]
[348636447,1736693439381,-501.00752932,9.967e-05,2]
[348636448,1736693439390,-500.0,9.967e-05,2]
[348636449,1736693439399,-551.47,9.967e-05,2]
[348636450,1736693439410,-500.0,9.967e-05,2]
[348636451,1736693439420,-3562.87,9.967e-05,2]
[348636452,1736693439429,-500.0,9.967e-05,2]
[348636453,1736693439438,-768.87,9.967e-05,2]
[348636454,1736693439448,-505.22785167,9.967e-05,2]
[348636455,1736693439457,-503.42399889,9.967e-05,2]
[348636456,1736693439466,-601.81,9.967e-05,2]
[348636457,1736693439476,-500.0,9.967e-05,2]
[348636458,1736693439486,-503.45485883,9.967e-05,2]
[348636459,1736693439495,-500.0,9.967e-05,2]
[348636460,1736693439504,-501.714838,9.967e-05,2]
[348636461,1736693439514,-500.0,9.967e-05,2]
[348636462,1736693439524,-500.0,9.967e-05,2]
[348636463,1736693439534,-500.0,9.967e-05,2]
[348636464,1736693439543,-500.0,9.967e-05,2]
[348636465,1736693439552,-500.0,9.967e-05,2]
[348636466,1736693439562,-500.0,9.967e-05,2]
[348636467,1736693439571,-2559.01,9.967e-05,2]
[348636468,1736693439581,-746.64,9.967e-05,2]
[348636469,1736693439590,-500.0,9.967e-05,2]
[348636470,1736693439599,-500.0,9.967e-05,2]
[348636471,1736693439609,-500.0,9.967e-05,2]
[348636472,1736693439619,-500.0,9.967e-05,2]
[348636473,1736693439628,-570.71,9.967e-05,2]
[348636474,1736693439638,-500.0,9.967e-05,2]
[348636475,1736693439647,-500.0,9.967e-05,2]
[348636476,1736693439656,-1174.01,9.967e-05,2]
[348636477,1736693439665,-504.3808806,9.967e-05,2]
[348636478,1736693439674,-500.0,9.967e-05,2]
[348636479,1736693439683,-500.0,9.967e-05,2]
[348636480,1736693439693,-671.87,9.967e-05,2]
[348636481,1736693439702,-500.0,9.967e-05,2]
[348636482,1736693439712,-586.14,9.967e-05,2]
[348636483,1736693439722,-500.0,9.967e-05,2]
[348636484,1736693439731,-501.76566626,9.967e-05,2]
[348636485,1736693439741,-687.68,9.967e-05,2]
[348636486,1736693439751,-2711.97,9.967e-05,2]
[348636487,1736693439760,-500.0,9.967e-05,2]
[348636488,1736693439770,-500.0,9.967e-05,2]
[348636489,1736693439780,-500.0,9.967e-05,2]
[348636490,1736693439790,-716.4,9.967e-05,2]
[348636491,1736693439800,-500.0,9.967e-05,2]
[348636492,1736693439809,-500.0,9.967e-05,2]
[348636493,1736693439819,-502.779308,9.967e-05,2]
[348636494,1736693439829,-1188.47,9.967e-05,2]
[348636495,1736693439839,-500.0,9.967e-05,2]
[348636496,1736693439848,-503.75735965,9.967e-05,2]
[348636497,1736693439857,-687.36,9.967e-05,2]
[348636498,1736693439867,-500.0,9.967e-05,2]
[348636499,1736693439877,-502.9020632,9.967e-05,2]
[348636500,1736693439886,-568.07,9.967e-05,2]
[348636501,1736693439895,-500.0,9.967e-05,2]
[348636502,1736693439905,-749.62,9.967e-05,2]
[348636503,1736693439914,-500.70131403,9.967e-05,2]
[348636504,1736693439924,-635.84,9.967e-05,2]
[348636505,1736693439935,-3163.92,9.967e-05,2]
[348636506,1736693439944,-697.3,9.967e-05,2]
[348636507,1736693439954,-500.82180271,9.967e-05,2]
[348636508,1736693439963,-500.0,9.967e-05,2]
[348636509,1736693439973,-500.59159619,9.967e-05,2]
[348636510,1736693439983,-500.0,9.967e-05,2]
[348636511,1736693439998,-500.0,9.967e-05,2]
[348636512,1736693440008,-502.28478496,9.967e-05,2]
[348636513,1736693440018,-500.0,9.967e-05,2]
[348636514,1736693440027,-648.19,9.968e-05,2]
[348636515,1736693440037,-500.0,9.968e-05,2]
[348636516,1736693440046,-500.0,9.968e-05,2]
[348636517,1736693440056,-688.86,9.968e-05,2]
[348636518,1736693440065,-500.0,9.968e-05,2]
[348636519,1736693440074,-500.0,9.968e-05,2]
[348636520,1736693440083,-500.0,9.968e-05,2]
[348636521,1736693440093,-500.0,9.968e-05,2]
[348636522,1736693440102,-837.76,9.968e-05,2]
[348636523,1736693440111,-504.54,9.968e-05,2]
[348636524,1736693440121,-800.68,9.968e-05,2]
[348636525,1736693440131,-500.0,9.968e-05,2]
[348636526,1736693440141,-854.65,9.968e-05,2]
[348636527,1736693440152,-500.0,9.968e-05,2]
[348636528,1736693440162,-545.26,9.968e-05,2]
[348636529,1736693440171,-500.0,9.968e-05,2]
[348636530,1736693440182,-500.0,9.968e-05,2]
[348636532,1736693440192,-648.6,9.968e-05,2]
[348636533,1736693440203,-500.0,9.968e-05,2]
[348636535,1736693440212,-500.0,9.968e-05,2]
[348636537,1736693440222,-640.12,9.968e-05,2]
[348636538,1736693440231,-500.0,9.968e-05,2]
[348636540,1736693440241,-936.9,9.968e-05,2]
[348636541,1736693440250,-1386.13,9.968e-05,2]
[348636543,1736693440260,-1291.06,9.968e-05,2]
[348636544,1736693440270,-500.0,9.968e-05,2]
[348636545,1736693440279,-2028.89,9.968e-05,2]
[348636546,1736693440289,-5468.94,9.968e-05,2]
[348636547,1736693440299,-8117.79,9.968e-05,2]
[348636548,1736693440309,-915.09,9.968e-05,2]
[348636549,1736693440319,-1653.07,9.968e-05,2]
[348636550,1736693440328,-604.97,9.968e-05,2]
[348636551,1736693440338,-662.49,9.968e-05,2]
[348636552,1736693440347,-1849.69,9.968e-05,2]
[348636553,1736693440356,-500.0,9.968e-05,2]
[348636554,1736693440366,-990.08,9.968e-05,2]
[348636555,1736693440375,-1352.76,9.968e-05,2]
[348636556,1736693440385,-763.9,9.968e-05,2]
[348636557,1736693440395,-1493.95966347,9.969e-05,2]
[348636558,1736693440404,-6685.10329494,9.971e-05,2]
[348636559,1736693440414,-3149.033196,9.971e-05,2]
[348636560,1736693440423,-2062.19,9.972e-05,2]
[348636561,1736693440432,-1136.0,9.972e-05,2]
[348636562,1736693440443,-1780.45,9.972e-05,2]
[348636563,1736693440454,-6685.10329494,9.972e-05,2]
[348636564,1736693440465,-19695.0,9.973e-05,2]
[348636565,1736693440474,-4613.0,9.973e-05,2]
[348636566,1736693440483,-6685.10329494,9.973e-05,2]
[348636567,1736693440493,-17657.52444938,9.974e-05,2]
[348636568,1736693440502,-1347.63,9.974e-05,2]
[348636569,1736693440511,-500.0,9.974e-05,2]
[348636570,1736693440521,-1000.0,9.974e-05,2]
[348636571,1736693440531,-751.82,9.974e-05,2]
[348636572,1736693440541,-500.0,9.974e-05,2]
[348636573,1736693440551,-1822.72,9.974e-05,2]
[348636574,1736693440560,-1628.21,9.974e-05,2]
[348636575,1736693440569,-3149.033196,9.975e-05,2]
[348636576,1736693440578,-3149.033196,9.976e-05,2]
[348636577,1736693440587,-17657.52444938,9.979e-05,2]
[348636578,1736693440601,-17657.52444938,9.979e-05,2]
[348636579,1736693440611,-3149.033196,9.98e-05,2]
[348636580,1736693440621,-6685.10329494,9.982e-05,2]
[348636581,1736693440631,-17657.52444938,9.986e-05,2]
[348636582,1736693440640,-491.11416612,9.988e-05,2]
[348636583,1736693440660,-534.80840634,9.988e-05,2]
[348636584,1736693440693,-507.959,9.988e-05,2]
[348636585,1736693440728,-387.0,9.988e-05,2]
[348636586,1736693440741,-15736.64287692,9.988e-05,2]
[348636587,1736693440751,-3149.033196,9.99e-05,2]
[348636588,1736693440760,-1000.0,9.99e-05,2]
[348636589,1736693440770,-1000.0,9.99e-05,2]
[348636591,1736693440779,-1000.0,9.99e-05,2]
[348636593,1736693440788,-1000.0,9.99e-05,2]
[348636595,1736693440797,-792.0,9.99e-05,3]
[348636597,1736693440807,-1000.0,9.99e-05,3]
[348636599,1736693440816,-491.0,9.99e-05,3]
[348636601,1736693440825,-1000.0,9.99e-05,2]
[348636602,1736693440835,-1000.0,9.99e-05,2]
[348636604,1736693440844,-1002.0,9.99e-05,2]
[348636606,1736693440855,-1000.0,9.99e-05,3]
[348636607,1736693440863,-4743.72946023,9.993e-05,2]
[348636691,1736693441893,-943.3424,9.113e-05,2]
[348636693,1736693441906,-1193.56866986,9.113e-05,2]
[348636695,1736693441916,-500.81245417,9.966e-05,2]
[348636697,1736693441925,-500.0,9.966e-05,2]
[348636699,1736693441934,-746.71,9.967e-05,2]
[348636701,1736693441943,-1941.37383471,9.993e-05,2]
[348636703,1736693441952,-6685.10329494,9.994e-05,2]
[348636705,1736693441962,-200.0,9.997e-05,2]
[348636707,1736693441971,-500.0,9.997e-05,2]
[348636709,1736693441980,-3704.73647879,9.998e-05,3]
[348636710,1736693441992,-1177.2,9.999e-05,2]
[348636712,1736693442002,-536.964945,9.999e-05,2]
[348636714,1736693442011,-605.078297,9.999e-05,2]
[348636716,1736693442020,-159.355485,9.999e-05,2]
[348636718,1736693442029,-2818.24,9.999e-05,2]
[348636720,1736693442039,-157.099566,9.999e-05,2]
[348636722,1736693442048,-922.99,9.999e-05,2]
[348636724,1736693442057,-555.48,9.999e-05,2]
[348636725,1736693442066,-527.63,9.999e-05,2]
[348636727,1736693442075,-2581.1,9.999e-05,2]
[348636729,1736693442084,-500.0,9.999e-05,2]
[348636731,1736693442093,-500.0,9.999e-05,2]
[348636733,1736693442102,-500.0,9.999e-05,2]
[348636735,1736693442111,-486.17413973,9.999e-05,2]
[348636737,1736693442120,-960.95,9.999e-05,2]
[348636738,1736693442129,-500.0,9.999e-05,2]